fUST/lending_fUST_20241028
["ID","MTS","AMOUNT","RATE_DAILY","PERIOD"]
[340906905,1730055052518,-877.21,0.00027945,30]
[340906906,1730055052528,-500.0,0.00027945,30]
[340906907,1730055052538,-1541.75,0.00027945,30]
[340906908,1730055052548,-1854.65,0.00027945,30]
[340906909,1730055052596,-500.0,0.00027945,30]
[340906910,1730055052606,-793.92,0.00027945,30]
[340906911,1730055052616,-941.25,0.00027945,30]
[340906912,1730055052626,-551.29,0.00027945,30]
[340906913,1730055052635,-500.0,0.00027945,30]
[340906914,1730055052646,-500.0,0.00027945,30]
[340906915,1730055052655,-550.02,0.00027945,30]
[340906916,1730055052675,-632.59,0.00027945,30]
[340906917,1730055052686,-500.0,0.00027945,2]
[340906918,1730055052698,-273.369482,0.00027945,7]
[340906919,1730055052709,-273.369482,0.00027945,7]
[340906920,1730055052719,-273.369482,0.00027945,7]
[340906921,1730055052728,-500.0,0.00027945,30]
[340906922,1730055052738,-273.369482,0.00027945,7]
[340906923,1730055052749,-273.369482,0.00027945,7]
[340906924,1730055052759,-273.369482,0.00027945,7]
[340906925,1730055052769,-294.40691261,0.00028,15]
[340906926,1730055052778,-203.733064,0.0002804,2]
[340906927,1730055052788,-168.990544,0.0002804,2]
[340906928,1730055052798,-403.860817,0.0002804,2]
[340906929,1730055052809,-500.0,0.00028175,10]
[340906930,1730055052819,-500.0,0.00028175,10]
[340906931,1730055052829,-151.0,0.00028219,30]
[340906932,1730055052840,-151.0,0.00028219,30]
[340906933,1730055052850,-500.0,0.00028219,30]
[340906934,1730055052861,-286.33665928,0.00028219,30]
[340906935,1730055052871,-978.61073576,0.00028219,30]
[340906936,1730055052880,-500.0,0.00028219,30]
[340906937,1730055052889,-1190.43,0.00028219,7]
[340906938,1730055052900,-500.0,0.00028219,30]
[340906939,1730055052911,-500.0,0.00028219,30]
[340906940,1730055052921,-643.57,0.00028219,30]
[340906941,1730055052931,-500.0,0.00028219,30]
[340906942,1730055052941,-555.07,0.00028219,30]
[340906943,1730055052951,-623.43,0.00028219,30]
[340906944,1730055052961,-550.85,0.00028219,30]
[340906945,1730055052971,-500.0,0.00028219,30]
[340906946,1730055052980,-546.22,0.00028219,30]
[340906947,1730055052990,-1146.55,0.00028219,30]
[340906948,1730055053001,-500.0,0.00028219,30]
[340906949,1730055053012,-753.29,0.00028219,30]
[340906950,1730055053022,-500.0,0.00028219,30]
[340906951,1730055053032,-846.48,0.00028219,30]
[340906952,1730055053043,-500.0,0.00028219,30]
[340906953,1730055053055,-500.0,0.00028219,30]
[340906954,1730055053066,-500.0,0.00028219,30]
[340906955,1730055053078,-682.2,0.00028219,30]
[340906956,1730055053088,-538.46,0.00028219,30]
[340906957,1730055053098,-582.34,0.00028219,30]
[340906958,1730055053108,-500.0,0.00028219,30]
[340906959,1730055053118,-500.0,0.00028219,30]
[340906960,1730055053128,-560.28,0.00028219,30]
[340906961,1730055053139,-500.0,0.00028219,30]
[340906962,1730055053150,-840.35,0.00028219,30]
[340906963,1730055053161,-571.79,0.00028219,30]
[340906964,1730055053172,-500.0,0.00028219,30]
[340906965,1730055053182,-500.0,0.00028219,30]
[340906966,1730055053192,-1755.91,0.00028219,30]
[340906967,1730055053201,-500.0,0.00028219,30]
[340906968,1730055053211,-500.0,0.00028219,30]
[340906969,1730055053223,-1232.44,0.00028219,30]
[340906970,1730055053233,-614.5,0.00028219,30]
[340906971,1730055053245,-1087.52,0.00028219,30]
[340906972,1730055053255,-571.96,0.00028219,30]
[340906973,1730055053266,-1029.89,0.00028219,30]
[340906974,1730055053280,-543.9,0.00028219,30]
[340906975,1730055053291,-505.72,0.00028219,30]
[340906976,1730055053305,-500.0,0.00028219,30]
[340906977,1730055053315,-500.0,0.00028219,30]
[340906978,1730055053326,-884.9,0.00028219,30]
[340906979,1730055053338,-500.0,0.00028219,30]
[340906980,1730055053349,-500.0,0.00028219,30]
[340906981,1730055053361,-594.7,0.00028219,30]
[340906982,1730055053372,-500.0,0.00028219,30]
[340906983,1730055053384,-1026.86,0.00028219,30]
[340906984,1730055053394,-646.59,0.00028219,30]
[340906985,1730055053405,-1646.25,0.00028219,30]
[340906986,1730055053415,-500.0,0.00028219,30]
[340906987,1730055053425,-500.0,0.00028219,30]
[340906988,1730055053437,-2062.25,0.00028219,30]
[340906989,1730055053447,-1088.64,0.00028219,30]
[340906990,1730055053458,-1549.13,0.00028219,30]
[340906991,1730055053469,-1793.22,0.00028219,30]
[340906992,1730055053479,-551.52,0.00028219,30]
[340906993,1730055053488,-780.37,0.00028219,30]
[340906994,1730055053499,-552.32,0.00028219,30]
[340906995,1730055053509,-500.0,0.00028219,30]
[340906996,1730055053518,-500.0,0.00028219,30]
[340906997,1730055053528,-500.0,0.00028219,30]
[340906998,1730055053537,-500.0,0.00028219,30]
[340906999,1730055053547,-531.07,0.00028219,30]
[340907000,1730055053557,-500.0,0.00028219,30]
[340907001,1730055053568,-500.0,0.00028219,30]
[340907002,1730055053579,-865.54,0.00028219,30]
[340907003,1730055053589,-1105.47,0.00028219,30]
[340907004,1730055053599,-1193.93,0.00028219,30]
[340907005,1730055053609,-500.0,0.00028219,30]
[340907006,1730055053620,-630.45,0.00028219,30]
[340907007,1730055053631,-717.72,0.00028219,30]
[340907008,1730055053642,-500.0,0.00028219,30]
[340907009,1730055053652,-530.31,0.00028219,30]
[340907010,1730055053662,-500.0,0.00028219,30]
[340907011,1730055053673,-519.41,0.00028219,30]
[340907012,1730055053683,-500.0,0.00028219,30]
[340907013,1730055053694,-500.0,0.00028219,30]
[340907014,1730055053705,-686.05,0.00028219,30]
[340907015,1730055053716,-500.0,0.00028219,30]
[340907016,1730055053727,-677.14,0.00028219,30]
[340907017,1730055053737,-744.65,0.00028219,30]
[340907018,1730055053748,-504.88,0.00028219,30]
[340907019,1730055053758,-500.0,0.00028219,30]
[340907020,1730055053768,-743.94,0.00028219,30]
[340907021,1730055053778,-637.89,0.00028219,30]
[340907022,1730055053788,-500.0,0.00028219,30]
[340907023,1730055053799,-500.0,0.00028219,7]
[340907024,1730055053810,-1278.08,0.00028219,30]
[340907025,1730055053821,-990.79,0.00028219,30]
[340907026,1730055053830,-500.0,0.00028219,30]
[340907027,1730055053840,-345.8952898,0.00028219,30]
[340907028,1730055053850,-514.69,0.00028219,30]
[340907029,1730055053859,-500.0,0.00028219,30]
[340907030,1730055053869,-500.0,0.00028219,30]
[340907031,1730055053878,-500.0,0.00028219,30]
[340907032,1730055053893,-676.16,0.00028219,14]
[340907033,1730055053905,-1319.48,0.00028219,30]
[340907034,1730055053917,-542.52,0.00028219,30]
[340907035,1730055053927,-601.93,0.00028219,30]
[340907036,1730055053937,-708.62,0.00028219,30]
[340907037,1730055053946,-1713.33,0.00028219,30]
[340907038,1730055053956,-850.64,0.00028219,30]
[340907039,1730055053969,-1274.7,0.00028219,30]
[340907040,1730055053979,-892.16,0.00028219,30]
[340907041,1730055053989,-151.0,0.00028219,7]
[340907042,1730055053999,-500.0,0.00028219,30]
[340907043,1730055054010,-555.85,0.00028219,30]
[340907044,1730055054020,-645.55,0.00028219,30]
[340907045,1730055054032,-808.92,0.00028219,30]
[340907046,1730055054043,-500.0,0.00028219,30]
[340907047,1730055054053,-500.0,0.00028219,30]
[340907048,1730055054064,-679.55,0.00028219,30]
[340907049,1730055054075,-609.58,0.00028219,30]
[340907050,1730055054086,-548.25,0.00028219,30]
[340907051,1730055054096,-757.81,0.00028219,30]
[340907052,1730055054107,-500.0,0.00028219,30]
[340907053,1730055054119,-200.0,0.00028219,7]
[340907054,1730055054132,-500.0,0.00028219,30]
[340907055,1730055054144,-1142.74,0.00028219,30]
[340907056,1730055054154,-918.92,0.00028219,30]
[340907057,1730055054164,-763.29,0.00028219,30]
[340907058,1730055054174,-913.96,0.00028219,30]
[340907059,1730055054183,-1027.65,0.00028219,30]
[340907060,1730055054193,-652.51,0.00028219,30]
[340907061,1730055054202,-500.0,0.00028219,30]
[340907062,1730055054213,-737.1,0.00028219,30]
[340907063,1730055054223,-500.0,0.00028219,30]
[340907064,1730055054233,-22119.62,0.00028219,30]
[340907065,1730055054242,-532.07,0.00028219,30]
[340907066,1730055054252,-151.0,0.00028219,7]
[340907067,1730055054263,-1211.92,0.00028219,30]
[340907068,1730055054273,-537.06,0.00028219,30]
[340907069,1730055054283,-584.92,0.00028219,30]
[340907070,1730055054295,-5993.53,0.00028219,21]
[340907071,1730055054306,-4295.16,0.00028219,30]
[340907072,1730055054318,-2263.8,0.00028219,30]
[340907073,1730055054329,-586.12,0.00028219,30]
[340907074,1730055054341,-685.98,0.00028219,30]
[340907075,1730055054354,-500.0,0.00028219,30]
[340907076,1730055054365,-1219.11,0.00028219,30]
[340907077,1730055054376,-1352.46,0.00028219,30]
[340907078,1730055054386,-500.0,0.00028219,30]
[340907079,1730055054397,-1217.73,0.00028219,30]
[340907080,1730055054409,-649.4,0.00028219,30]
[340907081,1730055054419,-500.0,0.00028219,30]
[340907082,1730055054430,-966.55,0.00028219,30]
[340907083,1730055054439,-1439.74,0.00028219,30]
[340907084,1730055054450,-795.95,0.00028219,30]
[340907085,1730055054460,-534.58,0.00028219,30]
[340907086,1730055054470,-500.0,0.00028219,30]
[340907087,1730055054479,-183.056007,0.00028219,7]
[340907088,1730055054489,-500.0,0.00028219,30]
[340907089,1730055054499,-183.056005,0.00028219,7]
[340907090,1730055054508,-1068.91,0.00028219,30]
[340907091,1730055054517,-945.01,0.00028219,30]
[340907092,1730055054526,-500.0,0.00028219,30]
[340907093,1730055054536,-683.59,0.00028219,30]
[340907094,1730055054548,-522.81,0.00028219,30]
[340907095,1730055054558,-807.57,0.00028219,30]
[340907096,1730055054567,-500.0,0.00028219,30]
[340907097,1730055054578,-2323.16,0.00028219,30]
[340907098,1730055054589,-3343.22,0.00028219,30]
[340907099,1730055054599,-500.0,0.00028219,30]
[340907100,1730055054609,-500.0,0.00028219,30]
[340907101,1730055054619,-1264.02,0.00028219,30]
[340907102,1730055054629,-7580.48,0.00028219,30]
[340907103,1730055054639,-647.73,0.00028219,30]
[340907104,1730055054650,-500.0,0.00028219,30]
[340907105,1730055054659,-3846.0,0.00028219,30]
[340907106,1730055054669,-500.0,0.00028219,30]
[340907107,1730055054679,-500.0,0.00028219,30]
[340907108,1730055054690,-833.09,0.00028219,30]
[340907109,1730055054700,-1969.84,0.00028219,30]
[340907110,1730055054710,-1390.9,0.00028219,30]
[340907111,1730055054722,-1637.83,0.00028219,30]
[340907112,1730055054731,-651.23,0.00028219,30]
[340907113,1730055054741,-500.0,0.00028219,30]
[340907114,1730055054750,-1633.42,0.00028219,30]
[340907115,1730055054760,-650.5,0.00028219,30]
[340907116,1730055054770,-1174.83,0.00028219,30]
[340907117,1730055054782,-2081.19,0.00028219,30]
[340907118,1730055054792,-2166.32,0.00028219,30]
[340907119,1730055054802,-500.0,0.00028219,30]
[340907120,1730055054811,-742.46,0.00028219,30]
[340907121,1730055054822,-877.21,0.00028219,30]
[340907122,1730055054833,-1541.75,0.00028219,30]
[340907123,1730055054845,-335.10271831,0.00028219,30]
[340907127,1730055504030,169.574365,0.00013973,2]
[340907128,1730055782044,273.37336231,0.0002002,2]
[340907129,1730055789828,273.37336231,0.0002002,2]
[340907130,1730055798511,273.37336231,0.0002002,2]
[340907131,1730055806261,273.37336231,0.0002002,2]
[340907132,1730055814327,273.37336231,0.0002002,2]
[340907133,1730055822108,273.37336231,0.0002002,2]
[340907134,1730055830131,273.37336231,0.0002002,2]
[340907135,1730055838067,273.37336231,0.0002002,2]
[340907136,1730055846138,273.37336231,0.0002002,2]
[340907137,1730055861265,273.37336231,0.0002002,2]
[340907138,1730055891554,273.37336231,0.0002002,2]
[340907139,1730055907705,273.37336231,0.0002002,2]
[340907141,1730055930078,273.37336231,0.0002002,2]
[340907142,1730055938025,273.37336231,0.0002002,2]
[340907143,1730055946587,273.37336231,0.0002002,2]
[340907144,1730055954307,273.37336231,0.0002002,2]
[340907145,1730055963215,273.37336231,0.0002002,2]
[340907146,1730055970961,273.37336231,0.0002002,2]
[340907147,1730055980031,273.37336231,0.0002002,2]
[340907148,1730055988359,273.37336231,0.0002002,2]
[340907149,1730055998555,546.74672462,0.0002002,2]
[340907150,1730056006824,546.74672462,0.0002002,2]
[340907151,1730056015277,273.37336231,0.0002002,2]
[340907152,1730056023059,273.37336231,0.0002002,2]
[340907153,1730056040947,273.37336231,0.0002002,2]
[340907154,1730056057143,273.37336231,0.0002002,2]
[340907155,1730056072282,273.37336231,0.0002002,2]
[340907156,1730056087679,273.37336231,0.0002002,2]
[340907157,1730056102849,273.37336231,0.0002002,2]
[340907158,1730056118026,273.37336231,0.0002002,2]
[340907159,1730056133559,273.37336231,0.0002002,2]
[340907167,1730056148842,273.37336231,0.0002002,2]
[340907169,1730056179970,273.37336231,0.0002002,2]
[340907170,1730056195690,273.37336231,0.0002002,2]
[340907171,1730056211358,273.37336231,0.0002002,2]
[340907175,1730056227183,273.37336231,0.0002002,2]
[340907225,1730056232928,-169.574365,0.00020447,2]
[340907226,1730056232938,-201.0,0.00023,2]
[340907227,1730056232949,-282.925635,0.00023545,2]
[340907230,1730056238803,-638.34268696,0.00023545,2]
[340907231,1730056238942,-79.25307199,0.00023545,2]
[340907232,1730056238953,-1765.30613173,0.00023953,2]
[340907233,1730056238969,-1950.35757757,0.00023953,2]
[340907234,1730056238979,-160.724414,0.00024133,2]
[340907235,1730056238988,-202.0,0.00024164,2]
[340907236,1730056238998,-166.6666678,0.00024922,2]
[340907237,1730056239009,-300.0,0.00025245,2]
[340907238,1730056239019,-300.0,0.00025245,2]
[340907239,1730056239028,-445.20188197,0.00025246,2]
[340907240,1730056239038,-4488.32577156,0.00025246,2]
[340907241,1730056239050,-4119.10071634,0.00025246,2]
[340907307,1730056240721,-16292.5735121,0.00025246,2]
[340907309,1730056240732,-304.559375,0.00025257,2]
[340907310,1730056240743,-170.676622,0.00025275,2]
[340907311,1730056240752,-3000.0,0.00025335,2]
[340907312,1730056240763,-500.0,0.00026,30]
[340907313,1730056240774,-500.0,0.00026,30]
[340907314,1730056240785,-500.0,0.00026,30]
[340907315,1730056240799,-500.0,0.00026,30]
[340907316,1730056240809,-500.0,0.00026,30]
[340907317,1730056240820,-500.0,0.00026,30]
[340907318,1730056240830,-500.0,0.00026,30]
[340907319,1730056240841,-500.0,0.00026,30]
[340907320,1730056240851,-500.0,0.00026,30]
[340907321,1730056240862,-500.0,0.00026,30]
[340907322,1730056240874,-500.0,0.00026,30]
[340907323,1730056240885,-500.0,0.00026,30]
[340907324,1730056240896,-500.0,0.00026,30]
[340907325,1730056240906,-500.0,0.00026,30]
[340907326,1730056240915,-169.574365,0.00026921,2]
[340907327,1730056240926,-167.0,0.00027,2]
[340907328,1730056240935,-425.58954553,0.00027274,2]
[340907329,1730056240944,-425.5895455,0.0002728,2]
[340907330,1730056240954,-425.5895455,0.00027285,2]
[340907331,1730056240967,-425.5895455,0.00027291,2]
[340907332,1730056240978,-425.5895455,0.00027296,2]
[340907333,1730056240988,-1015.29115512,0.00027341,14]
[340907334,1730056240999,-245.14428575,0.00027342,2]
[340907335,1730056241013,-174.85571425,0.00027342,2]
[340907336,1730056241023,-336.68,0.00027363,3]
[340907337,1730056241033,-253.17,0.00027363,10]
[340907338,1730056241042,-168.34,0.00027364,3]
[340907339,1730056241051,-500.0,0.00027372,2]
[340907340,1730056241062,-152.39727109,0.00027372,2]
[340907341,1730056241072,-500.0,0.00027372,2]
[340907342,1730056241083,-500.0,0.00027372,2]
[340907343,1730056241094,-271.20324504,0.00027372,2]
[340907344,1730056241104,-500.0,0.00027372,2]
[340907345,1730056241116,-500.0,0.00027372,2]
[340907346,1730056241128,-500.0,0.00027372,2]
[340907347,1730056241139,-500.0,0.00027372,2]
[340907348,1730056241150,-500.0,0.00027372,2]
[340907349,1730056241159,-500.0,0.00027372,2]
[340907350,1730056241170,-500.0,0.00027372,2]
[340907351,1730056241180,-500.0,0.00027372,2]
[340907352,1730056241189,-500.0,0.00027372,2]
[340907353,1730056241198,-500.0,0.00027372,2]
[340907354,1730056241208,-500.0,0.00027372,2]
[340907355,1730056241217,-500.0,0.00027372,2]
[340907356,1730056241226,-500.0,0.00027372,2]
[340907357,1730056241237,-500.0,0.00027372,2]
[340907358,1730056241246,-500.0,0.00027372,2]
[340907359,1730056241257,-500.0,0.00027372,2]
[340907360,1730056241270,-500.0,0.00027372,2]
[340907361,1730056241280,-500.0,0.00027372,2]
[340907362,1730056241290,-500.0,0.00027372,2]
[340907363,1730056241301,-500.0,0.00027372,2]
[340907364,1730056241311,-500.0,0.00027372,2]
[340907365,1730056241323,-500.0,0.00027372,2]
[340907366,1730056241334,-500.0,0.00027372,2]
[340907367,1730056241345,-500.0,0.00027372,2]
[340907368,1730056241356,-500.0,0.00027372,2]
[340907369,1730056241367,-500.0,0.00027372,2]
[340907370,1730056241376,-500.0,0.00027372,2]
[340907371,1730056241385,-500.0,0.00027372,2]
[340907372,1730056241395,-648.52791322,0.00027372,2]
[340907373,1730056241404,-500.0,0.00027372,2]
[340907374,1730056241413,-500.0,0.00027372,2]
[340907375,1730056241423,-500.0,0.00027372,2]
[340907376,1730056241433,-500.0,0.00027372,2]
[340907377,1730056241442,-500.0,0.00027372,2]
[340907378,1730056241452,-500.0,0.00027372,2]
[340907379,1730056241462,-500.0,0.00027372,2]
[340907380,1730056241471,-500.0,0.00027372,2]
[340907381,1730056241480,-500.0,0.00027372,2]
[340907382,1730056241490,-500.0,0.00027372,2]
[340907383,1730056241499,-512.3704956,0.00027372,2]
[340907384,1730056241509,-500.0,0.00027372,2]
[340907385,1730056241519,-500.0,0.00027372,2]
[340907386,1730056241532,-500.0,0.00027372,2]
[340907387,1730056241542,-500.0,0.00027372,2]
[340907388,1730056241551,-500.0,0.00027372,2]
[340907389,1730056241561,-500.0,0.00027372,2]
[340907390,1730056241571,-500.0,0.00027372,2]
[340907391,1730056241580,-500.0,0.00027372,2]
[340907392,1730056241589,-500.0,0.00027372,2]
[340907393,1730056241598,-500.0,0.00027372,2]
[340907394,1730056241608,-500.0,0.00027372,2]
[340907395,1730056241618,-500.0,0.00027372,2]
[340907396,1730056241627,-500.0,0.00027372,2]
[340907397,1730056241637,-500.0,0.00027372,2]
[340907398,1730056241646,-500.0,0.00027372,2]
[340907399,1730056241655,-500.0,0.00027372,2]
[340907400,1730056241664,-500.0,0.00027372,2]
[340907401,1730056241674,-500.0,0.00027372,2]
[340907402,1730056241683,-500.0,0.00027372,2]
[340907403,1730056241693,-500.0,0.00027372,2]
[340907404,1730056241702,-500.0,0.00027372,2]
[340907405,1730056241712,-500.0,0.00027372,2]
[340907406,1730056241722,-500.0,0.00027372,2]
[340907407,1730056241732,-500.0,0.00027372,2]
[340907408,1730056241745,-500.0,0.00027372,2]
[340907409,1730056241756,-500.0,0.00027372,2]
[340907410,1730056241766,-500.0,0.00027372,2]
[340907411,1730056241778,-500.0,0.00027372,2]
[340907412,1730056241788,-500.0,0.00027372,2]
[340907413,1730056241800,-500.0,0.00027372,2]
[340907414,1730056241812,-500.0,0.00027372,2]
[340907415,1730056241822,-500.0,0.00027372,2]
[340907416,1730056241831,-500.0,0.00027372,2]
[340907417,1730056241841,-500.0,0.00027372,2]
[340907418,1730056241853,-500.0,0.00027372,2]
[340907419,1730056241863,-500.0,0.00027372,2]
[340907420,1730056241874,-166.29717934,0.00027372,2]
[340907421,1730056241885,-500.0,0.00027373,2]
[340907422,1730056241895,-310.26493964,0.00027373,2]
[340907423,1730056241904,-500.0,0.00027373,2]
[340907424,1730056241915,-501.41969194,0.00027373,2]
[340907425,1730056241928,-500.0,0.00027373,2]
[340907426,1730056241939,-500.0,0.00027373,2]
[340907427,1730056242131,-500.0,0.00027373,2]
[340907428,1730056242143,-501.47420076,0.00027373,2]
[340907429,1730056242153,-54743.9022677,0.00027374,4]
[340907430,1730056242163,-192.29043408,0.00027376,2]
[340907431,1730056242176,-187.77379688,0.00027376,2]
[340907432,1730056242187,-500.0,0.00027376,2]
[340907433,1730056242196,-500.0,0.00027376,2]
[340907434,1730056242206,-500.0,0.00027376,2]
[340907435,1730056242217,-254.02281671,0.00027376,2]
[340907436,1730056242228,-224.55394957,0.00027376,2]
[340907437,1730056242238,-54743.9022677,0.00027377,4]
[340907438,1730056242247,-19156.55383648,0.00027387,4]
[340907439,1730056242855,273.37336231,0.0002002,2]
[340907446,1730056258251,546.74672462,0.0002002,2]
[340907447,1730056273929,273.37336231,0.0002002,2]
[340907448,1730056289231,273.37336231,0.0002002,2]
[340907449,1730056305048,273.37336231,0.0002002,2]
[340907450,1730056320687,273.37336231,0.0002002,2]
[340907451,1730056336425,273.37336231,0.0002002,2]
[340907452,1730056351500,273.37336231,0.0002002,2]
[340907453,1730056367633,273.37336231,0.0002002,2]
[340907454,1730056383210,273.37336231,0.0002002,2]
[340907455,1730056398935,273.37336231,0.0002002,2]
[340907456,1730056414082,273.37336231,0.0002002,2]
[340907457,1730056429680,273.37336231,0.0002002,2]
[340907458,1730056444790,273.37336231,0.0002002,2]
[340907459,1730056474435,273.37336231,0.0002002,2]
[340907460,1730056489714,273.37336231,0.0002002,2]
[340907461,1730056504770,273.37336231,0.0002002,2]
[340907462,1730056520160,273.37336231,0.0002002,2]
[340907463,1730056535249,546.74672462,0.0002002,2]
[340907464,1730056551965,5000.0,0.0002002,2]
[340907465,1730056569472,2210.34235098,0.0002002,2]
[340907466,1730056647461,188.782655,0.00013973,2]
[340907471,1730057300052,21288.79757073,0.0002,2]
[340907477,1730057314541,11501.50949127,0.0002,2]
[340907478,1730057315547,1513.85950736,0.0002,2]
[340907479,1730057321725,4329.67727729,0.0002,2]
[340907480,1730057323213,349.96677016,0.0002,2]
[340907481,1730057323245,294533.0,0.0001999,2]
[340907482,1730057323706,158.42488324,0.0002,2]
[340907484,1730057382307,212.5,0.00019829,2]
[340907485,1730057382528,212.5,0.00019883,2]
[340907486,1730057382740,212.5,0.00019937,2]
[340907487,1730057383043,212.5,0.00019992,2]
[340907488,1730057422454,2062.1619416,0.00019305,2]
[340907496,1730057431762,-212.5,0.00020046,2]
[340907498,1730057431775,-212.5,0.00020101,2]
[340907501,1730057431786,-212.5,0.00020155,2]
[340907503,1730057431798,-212.5,0.00020209,2]
[340907504,1730057431808,-212.5,0.00020264,2]
[340907505,1730057431819,-212.5,0.00020318,2]
[340907506,1730057431829,-757.53,0.00020367,3]
[340907507,1730057431840,-212.5,0.00020372,2]
[340907508,1730057431850,-300.0,0.00020376,2]
[340907509,1730057431861,-300.0,0.00020376,2]
[340907510,1730057431873,-520.27264941,0.00020377,2]
[340907511,1730057431883,-13471.03657782,0.00020377,2]
[340907512,1730057431899,-6547.97729383,0.00020377,2]
[340907513,1730057431913,-881.65121173,0.00020377,2]
[340907514,1730057431926,-346.24591144,0.00020377,2]
[340907515,1730057437900,-500.0,0.00020376,2]
[340907516,1730057437910,-500.0,0.00020376,2]
[340907517,1730057437920,-500.0,0.00020376,2]
[340907518,1730057437930,-572.05865702,0.00020376,2]
[340907519,1730057437940,-414.94134297,0.00020376,2]
[340907520,1730057437954,-85.05865703,0.00020376,2]
[340907521,1730057437964,-500.0,0.00020376,2]
[340907522,1730057437974,-500.0,0.00020376,2]
[340907523,1730057437984,-500.0,0.00020376,2]
[340907524,1730057437994,-451.23704956,0.00020376,2]
[340907525,1730057438003,-500.0,0.00020376,2]
[340907526,1730057438013,-500.0,0.00020376,2]
[340907527,1730057438023,-500.0,0.00020376,2]
[340907528,1730057438032,-500.0,0.00020376,2]
[340907529,1730057438042,-500.0,0.00020376,2]
[340907530,1730057438051,-500.0,0.00020376,2]
[340907531,1730057438061,-500.0,0.00020376,2]
[340907532,1730057438070,-500.0,0.00020376,2]
[340907533,1730057438080,-500.0,0.00020376,2]
[340907534,1730057438089,-500.0,0.00020376,2]
[340907535,1730057438098,-500.0,0.00020376,2]
[340907536,1730057438108,-500.0,0.00020376,2]
[340907537,1730057438119,-500.0,0.00020376,2]
[340907538,1730057438129,-500.0,0.00020376,2]
[340907539,1730057438138,-500.0,0.00020376,2]
[340907540,1730057438158,-500.0,0.00020376,2]
[340907541,1730057438170,-500.0,0.00020376,2]
[340907542,1730057438179,-500.0,0.00020376,2]
[340907543,1730057438189,-500.0,0.00020376,2]
[340907544,1730057438200,-500.0,0.00020376,2]
[340907545,1730057438210,-500.0,0.00020376,2]
[340907546,1730057438220,-500.0,0.00020376,2]
[340907547,1730057438230,-500.0,0.00020376,2]
[340907548,1730057438240,-366.62971794,0.00020376,2]
[340907549,1730057438250,-500.0,0.00020376,2]
[340907550,1730057438260,-500.0,0.00020376,2]
[340907551,1730057438270,-78282.27148585,0.00020377,2]
[340907569,1730057439907,-47283.81751933,0.00020377,2]
[340907570,1730057439920,-212.5,0.00020427,2]
[340907571,1730057439931,-188.782655,0.00020447,2]
[340907572,1730057439941,-212.5,0.00020481,2]
[340907573,1730057439952,-212.5,0.00020536,2]
[340907574,1730057439962,-212.5,0.0002059,2]
[340907575,1730057439972,-212.5,0.00020644,2]
[340907576,1730057439981,-212.5,0.00020699,2]
[340907577,1730057439990,-212.5,0.00020753,2]
[340907578,1730057440000,-212.5,0.00020808,2]
[340907579,1730057440009,-212.5,0.00020862,2]
[340907580,1730057440019,-161.09920441,0.000209,2]